[Event "*** Titled Tuesday Blitz"]
[Site "Chess.com"]
[Date "2020.04.21"]
[Round "8"]
[White "Zoffy13"]
[Black "ADODOVE"]
[Result "0-1"]
[WhiteElo "2155"]
[BlackElo "1930"]
[TimeControl "180+1"]
[EndTime "11:37:37 PDT"]
[Termination "ADODOVE won on time"]

1. d4 {[%clk 0:03:00.9]} 1... Nf6 {[%clk 0:02:59]} 2. Nf3 {[%clk 0:03:01]} 2...
c5 {[%clk 0:02:57.3]} 3. d5 {[%clk 0:02:59.5]} 3... g6 {[%clk 0:02:55.2]} 4. c4
{[%clk 0:02:58.8]} 4... Bg7 {[%clk 0:02:54.5]} 5. Nc3 {[%clk 0:02:56.8]} 5... e6
{[%clk 0:02:53.7]} 6. e4 {[%clk 0:02:57.5]} 6... exd5 {[%clk 0:02:53]} 7. cxd5
{[%clk 0:02:58.4]} 7... d6 {[%clk 0:02:51.9]} 8. h3 {[%clk 0:02:58.2]} 8... O-O
{[%clk 0:02:50.9]} 9. Bd3 {[%clk 0:02:57.7]} 9... b5 {[%clk 0:02:50.3]} 10. Bxb5
{[%clk 0:02:40.1]} 10... Nxe4 {[%clk 0:02:43.5]} 11. Nxe4 {[%clk 0:02:40.3]}
11... Qa5+ {[%clk 0:02:42.7]} 12. Nfd2 {[%clk 0:02:40.2]} 12... Qxb5 {[%clk
0:02:40.7]} 13. Nxd6 {[%clk 0:02:40.3]} 13... Qa6 {[%clk 0:02:35.4]} 14. N2c4
{[%clk 0:02:39.9]} 14... Nd7 {[%clk 0:02:33.4]} 15. O-O {[%clk 0:02:28.5]} 15...
Ne5 {[%clk 0:02:30.6]} 16. Nxe5 {[%clk 0:02:12.3]} 16... Bxe5 {[%clk 0:02:21.1]}
17. Ne4 {[%clk 0:01:41.5]} 17... Bf5 {[%clk 0:02:12.9]} 18. Nxc5 {[%clk
0:01:13.2]} 18... Qc4 {[%clk 0:02:00.5]} 19. Re1 {[%clk 0:00:38.3]} 19... Rfe8
{[%clk 0:01:45.9]} 20. Nb3 {[%clk 0:00:30]} 20... Rad8 {[%clk 0:01:43.9]} 21.
Na5 {[%clk 0:00:18]} 21... Qxd5 {[%clk 0:01:31.1]} 22. Qxd5 {[%clk 0:00:15.3]}
22... Rxd5 {[%clk 0:01:29.9]} 23. Bd2 {[%clk 0:00:09.3]} 23... Rc8 {[%clk
0:01:06.8]} 24. Nb3 {[%clk 0:00:05.3]} 24... Bxb2 {[%clk 0:01:03.1]} 25. Rad1
{[%clk 0:00:05]} 25... Bc2 {[%clk 0:01:01.4]} 0-1

[Event "*** Titled Tuesday Blitz"]
[Site "Chess.com"]
[Date "2020.04.21"]
[Round "8"]
[White "Nikolakis2014"]
[Black "eightbyeightchess"]
[Result "1-0"]
[WhiteElo "2704"]
[BlackElo "2475"]
[TimeControl "180+1"]
[EndTime "11:37:38 PDT"]
[Termination "Nikolakis2014 won by resignation"]

1. Nf3 {[%clk 0:03:00.9]} 1... d5 {[%clk 0:02:58.8]} 2. d4 {[%clk 0:03:00.4]}
2... Nf6 {[%clk 0:02:52.4]} 3. c4 {[%clk 0:03:00.1]} 3... c6 {[%clk 0:02:52]} 4.
Nc3 {[%clk 0:02:59.3]} 4... dxc4 {[%clk 0:02:51.8]} 5. e4 {[%clk 0:02:57.4]}
5... b5 {[%clk 0:02:51]} 6. Be2 {[%clk 0:02:57.6]} 6... e6 {[%clk 0:02:49.2]} 7.
O-O {[%clk 0:02:57.2]} 7... Nbd7 {[%clk 0:02:45.4]} 8. e5 {[%clk 0:02:40.9]}
8... Nd5 {[%clk 0:02:45]} 9. Ne4 {[%clk 0:02:40.9]} 9... h6 {[%clk 0:02:37.5]}
10. a4 {[%clk 0:02:40.4]} 10... a5 {[%clk 0:02:22.8]} 11. axb5 {[%clk
0:02:22.7]} 11... cxb5 {[%clk 0:02:23.7]} 12. b3 {[%clk 0:02:23]} 12... Ba6
{[%clk 0:02:10.3]} 13. bxc4 {[%clk 0:02:22.1]} 13... bxc4 {[%clk 0:02:09.4]} 14.
Nfd2 {[%clk 0:02:08.2]} 14... c3 {[%clk 0:01:56.7]} 15. Nc4 {[%clk 0:02:06.2]}
15... Bxc4 {[%clk 0:01:45.2]} 16. Bxc4 {[%clk 0:02:05.9]} 16... Bb4 {[%clk
0:01:43.6]} 17. Qg4 {[%clk 0:01:59.6]} 17... Qc7 {[%clk 0:01:23.6]} 18. Qxg7
{[%clk 0:01:40]} 18... O-O-O {[%clk 0:01:23.2]} 19. Bxd5 {[%clk 0:01:30.4]}
19... exd5 {[%clk 0:01:23]} 20. Nf6 {[%clk 0:01:30.6]} 20... Nxe5 {[%clk
0:00:46.8]} 21. dxe5 {[%clk 0:01:23.4]} 21... Qxe5 {[%clk 0:00:47.7]} 22. Qg4+
{[%clk 0:01:22.9]} 22... Kb7 {[%clk 0:00:43.4]} 23. Qf3 {[%clk 0:01:19.7]} 23...
c2 {[%clk 0:00:36.2]} 24. Ba3 {[%clk 0:01:02.1]} 24... Rd6 {[%clk 0:00:22.2]}
25. Ng4 {[%clk 0:00:55.1]} 25... Qb2 {[%clk 0:00:06.1]} 26. Bxb2 {[%clk
0:00:53.6]} 1-0

[Event "*** Titled Tuesday Blitz"]
[Site "Chess.com"]
[Date "2020.04.21"]
[Round "8"]
[White "AcsinteMatei"]
[Black "Tpros"]
[Result "0-1"]
[WhiteElo "2252"]
[BlackElo "2390"]
[TimeControl "180+1"]
[EndTime "11:37:51 PDT"]
[Termination "Tpros won on time"]

1. d4 {[%clk 0:03:00.9]} 1... Nf6 {[%clk 0:02:59.4]} 2. Bf4 {[%clk 0:03:00.2]}
2... d6 {[%clk 0:02:59]} 3. Nc3 {[%clk 0:02:57.2]} 3... d5 {[%clk 0:02:53]} 4.
e3 {[%clk 0:02:53.2]} 4... g6 {[%clk 0:02:48]} 5. h4 {[%clk 0:02:52.7]} 5... h6
{[%clk 0:02:47.2]} 6. Nf3 {[%clk 0:02:52.1]} 6... Bg4 {[%clk 0:02:46]} 7. Qd2
{[%clk 0:02:38.1]} 7... c6 {[%clk 0:02:43.5]} 8. Bd3 {[%clk 0:02:36.6]} 8...
Nbd7 {[%clk 0:02:39.6]} 9. Ne5 {[%clk 0:02:36]} 9... Bf5 {[%clk 0:02:39.6]} 10.
g4 {[%clk 0:02:17]} 10... Nxg4 {[%clk 0:02:33.2]} 11. Bxf5 {[%clk 0:01:55.6]}
11... gxf5 {[%clk 0:02:34.1]} 12. O-O-O {[%clk 0:01:48.7]} 12... e6 {[%clk
0:02:15.7]} 13. f3 {[%clk 0:01:45.1]} 13... Ngxe5 {[%clk 0:02:15]} 14. dxe5
{[%clk 0:01:43.2]} 14... Qa5 {[%clk 0:02:11.8]} 15. e4 {[%clk 0:01:42.2]} 15...
fxe4 {[%clk 0:02:03.6]} 16. fxe4 {[%clk 0:01:40.8]} 16... Bb4 {[%clk 0:02:03.5]}
17. exd5 {[%clk 0:01:40.1]} 17... cxd5 {[%clk 0:02:01.9]} 18. Rh3 {[%clk
0:01:23.4]} 18... Rc8 {[%clk 0:01:56.5]} 19. Rg1 {[%clk 0:00:56.1]} 19... Nb6
{[%clk 0:01:52.1]} 20. Qf2 {[%clk 0:00:33]} 20... Rxc3 {[%clk 0:01:39.8]} 21.
bxc3 {[%clk 0:00:32.4]} 21... Bxc3 {[%clk 0:01:39.5]} 22. Bd2 {[%clk 0:00:20.5]}
22... Na4 {[%clk 0:01:36]} 23. Bxc3 {[%clk 0:00:18.2]} 23... Nxc3 {[%clk
0:01:35.5]} 24. Qf6 {[%clk 0:00:18.3]} 24... Rf8 {[%clk 0:01:28.1]} 25. Rgg3
{[%clk 0:00:07.6]} 25... Qa3+ {[%clk 0:01:25.5]} 26. Kd2 {[%clk 0:00:07.5]}
26... Ne4+ {[%clk 0:01:25.4]} 27. Kd1 {[%clk 0:00:06.4]} 27... Qxa2 {[%clk
0:01:00.5]} 28. Qf3 {[%clk 0:00:02]} 28... Qb1+ {[%clk 0:00:58.6]} 0-1

[Event "*** Titled Tuesday Blitz"]
[Site "Chess.com"]
[Date "2020.04.21"]
[Round "8"]
[White "tacticthunder"]
[Black "MasterKroket"]
[Result "1-0"]
[WhiteElo "2603"]
[BlackElo "2426"]
[TimeControl "180+1"]
[EndTime "11:37:52 PDT"]
[Termination "tacticthunder won by resignation"]

1. e4 {[%clk 0:03:00.9]} 1... c5 {[%clk 0:03:00.3]} 2. Nf3 {[%clk 0:02:59.8]}
2... e6 {[%clk 0:03:00.8]} 3. d4 {[%clk 0:03:00]} 3... cxd4 {[%clk 0:03:01.7]}
4. Nxd4 {[%clk 0:03:00.9]} 4... Nc6 {[%clk 0:03:02.5]} 5. Nc3 {[%clk 0:03:00.5]}
5... Qc7 {[%clk 0:03:02.8]} 6. Qd3 {[%clk 0:03:00.7]} 6... Nxd4 {[%clk
0:03:01.7]} 7. Qxd4 {[%clk 0:03:00.8]} 7... a6 {[%clk 0:03:01.7]} 8. Be3 {[%clk
0:03:00.5]} 8... b5 {[%clk 0:03:00.4]} 9. a4 {[%clk 0:03:00.5]} 9... b4 {[%clk
0:02:59.7]} 10. Na2 {[%clk 0:03:00.9]} 10... Nf6 {[%clk 0:02:42.6]} 11. Nxb4
{[%clk 0:02:55.2]} 11... a5 {[%clk 0:02:19.6]} 12. Na2 {[%clk 0:02:47.7]} 12...
Qxc2 {[%clk 0:02:17.3]} 13. Bd3 {[%clk 0:02:37]} 13... Qb3 {[%clk 0:02:02.7]}
14. O-O {[%clk 0:02:31.3]} 14... Be7 {[%clk 0:01:50.2]} 15. Bc4 {[%clk
0:02:23.5]} 15... Qb7 {[%clk 0:01:26.1]} 16. e5 {[%clk 0:02:23]} 16... Ne4
{[%clk 0:01:22.8]} 17. Nc3 {[%clk 0:02:00.5]} 17... Nxc3 {[%clk 0:01:20.1]} 18.
bxc3 {[%clk 0:02:01.4]} 18... O-O {[%clk 0:01:17.8]} 19. Bb5 {[%clk 0:01:45.9]}
19... Qc7 {[%clk 0:01:15.5]} 20. Rfd1 {[%clk 0:01:39.6]} 20... Rd8 {[%clk
0:01:09.1]} 21. Rac1 {[%clk 0:01:32]} 21... Bb7 {[%clk 0:00:57.8]} 22. Qb6
{[%clk 0:01:29.3]} 22... Qc8 {[%clk 0:00:47.5]} 23. c4 {[%clk 0:01:24.2]} 23...
Bc6 {[%clk 0:00:41.7]} 24. Rd3 {[%clk 0:00:56.8]} 24... f6 {[%clk 0:00:23.2]}
25. exf6 {[%clk 0:00:53.9]} 25... Bxf6 {[%clk 0:00:20.7]} 26. Rcd1 {[%clk
0:00:53.8]} 26... Bxb5 {[%clk 0:00:18]} 27. cxb5 {[%clk 0:00:54.7]} 27... d5
{[%clk 0:00:17.5]} 28. Rc1 {[%clk 0:00:52.9]} 28... Qd7 {[%clk 0:00:15.9]} 29.
Rc7 {[%clk 0:00:52]} 29... Qd6 {[%clk 0:00:15.6]} 30. Qxd6 {[%clk 0:00:45.2]}
30... Rd7 {[%clk 0:00:15.3]} 31. Qxd7 {[%clk 0:00:44.3]} 1-0

[Event "*** Titled Tuesday Blitz"]
[Site "Chess.com"]
[Date "2020.04.21"]
[Round "8"]
[White "LucaBrasi1968"]
[Black "artichaud"]
[Result "0-1"]
[WhiteElo "2479"]
[BlackElo "2259"]
[TimeControl "180+1"]
[EndTime "11:37:55 PDT"]
[Termination "artichaud won by checkmate"]

1. e4 {[%clk 0:03:00.9]} 1... d5 {[%clk 0:02:58.5]} 2. exd5 {[%clk 0:03:00.5]}
2... Qxd5 {[%clk 0:02:57.6]} 3. Nc3 {[%clk 0:02:59.9]} 3... Qd6 {[%clk 0:02:58]}
4. g3 {[%clk 0:02:58.6]} 4... Nf6 {[%clk 0:02:57.8]} 5. Bg2 {[%clk 0:02:58.8]}
5... Bg4 {[%clk 0:02:58]} 6. Nge2 {[%clk 0:02:54.7]} 6... Nc6 {[%clk 0:02:57.2]}
7. O-O {[%clk 0:02:53.2]} 7... O-O-O {[%clk 0:02:51.9]} 8. d3 {[%clk 0:02:50.9]}
8... e5 {[%clk 0:02:50.3]} 9. Be3 {[%clk 0:02:49.3]} 9... Qd7 {[%clk 0:02:49]}
10. Qd2 {[%clk 0:02:44.5]} 10... Bh3 {[%clk 0:02:47.8]} 11. Ne4 {[%clk
0:02:39.1]} 11... h5 {[%clk 0:02:44.6]} 12. Nxf6 {[%clk 0:02:36.7]} 12... gxf6
{[%clk 0:02:44]} 13. f4 {[%clk 0:01:49.1]} 13... h4 {[%clk 0:02:41.2]} 14. Nc3
{[%clk 0:01:46.7]} 14... hxg3 {[%clk 0:02:38.2]} 15. hxg3 {[%clk 0:01:46.4]}
15... Qg4 {[%clk 0:02:26.3]} 16. Qf2 {[%clk 0:01:17.4]} 16... Bd6 {[%clk
0:02:03.3]} 17. Ne4 {[%clk 0:01:08.6]} 17... Bxg2 {[%clk 0:02:00.9]} 18. Qxg2
{[%clk 0:01:08.2]} 18... f5 {[%clk 0:01:38.2]} 19. Ng5 {[%clk 0:01:07.5]} 19...
Rdg8 {[%clk 0:01:17.9]} 20. Qf3 {[%clk 0:00:42.9]} 20... f6 {[%clk 0:00:41.4]}
21. Qxg4 {[%clk 0:00:41.4]} 21... fxg4 {[%clk 0:00:41.2]} 22. Ne4 {[%clk
0:00:36]} 22... Rh3 {[%clk 0:00:26.3]} 23. f5 {[%clk 0:00:34.6]} 23... Rgh8
{[%clk 0:00:24.1]} 24. Nf2 {[%clk 0:00:19.9]} 24... Rxg3# {[%clk 0:00:23.1]} 0-1

[Event "*** Titled Tuesday Blitz"]
[Site "Chess.com"]
[Date "2020.04.21"]
[Round "8"]
[White "cukin84"]
[Black "Oglob71"]
[Result "0-1"]
[WhiteElo "2120"]
[BlackElo "2420"]
[TimeControl "180+1"]
[EndTime "11:37:58 PDT"]
[Termination "Oglob71 won by resignation"]

1. e4 {[%clk 0:03:00.9]} 1... c5 {[%clk 0:02:59.7]} 2. Nc3 {[%clk 0:03:00.3]}
2... a6 {[%clk 0:02:58.9]} 3. f4 {[%clk 0:02:59.7]} 3... b5 {[%clk 0:02:59.3]}
4. Nf3 {[%clk 0:02:59.2]} 4... e6 {[%clk 0:02:59.7]} 5. d3 {[%clk 0:02:58.1]}
5... Bb7 {[%clk 0:02:59.2]} 6. g3 {[%clk 0:02:57.7]} 6... b4 {[%clk 0:02:59.6]}
7. Ne2 {[%clk 0:02:57.3]} 7... Nf6 {[%clk 0:02:59.4]} 8. Bg2 {[%clk 0:02:56.5]}
8... d5 {[%clk 0:03:00]} 9. e5 {[%clk 0:02:55.6]} 9... Nfd7 {[%clk 0:02:59.8]}
10. O-O {[%clk 0:02:54.9]} 10... Nc6 {[%clk 0:03:00.2]} 11. a3 {[%clk
0:02:52.2]} 11... a5 {[%clk 0:03:00.2]} 12. axb4 {[%clk 0:02:52]} 12... axb4
{[%clk 0:03:00.2]} 13. Rxa8 {[%clk 0:02:51.4]} 13... Qxa8 {[%clk 0:03:00.7]} 14.
c4 {[%clk 0:02:46.4]} 14... bxc3 {[%clk 0:02:58.9]} 15. bxc3 {[%clk 0:02:45.9]}
15... Be7 {[%clk 0:02:58.9]} 16. Be3 {[%clk 0:02:33.6]} 16... O-O {[%clk
0:02:58.5]} 17. g4 {[%clk 0:02:27.7]} 17... d4 {[%clk 0:02:58.3]} 18. Bf2 {[%clk
0:02:23.7]} 18... dxc3 {[%clk 0:02:53]} 19. Nxc3 {[%clk 0:02:23.1]} 19... Nd4
{[%clk 0:02:51.6]} 20. Ne4 {[%clk 0:02:16.8]} 20... Nxf3+ {[%clk 0:02:45.2]} 21.
Bxf3 {[%clk 0:02:15.3]} 21... Rd8 {[%clk 0:02:42.1]} 22. Qc2 {[%clk 0:02:08.7]}
22... Bd5 {[%clk 0:02:36.6]} 23. Qc3 {[%clk 0:01:58.8]} 23... h6 {[%clk
0:02:35.2]} 24. Ra1 {[%clk 0:01:57.6]} 24... Qc6 {[%clk 0:02:34.5]} 25. Ra7
{[%clk 0:01:49.5]} 25... Rc8 {[%clk 0:02:33]} 26. Qa5 {[%clk 0:01:46.3]} 26...
Bf8 {[%clk 0:02:29.7]} 27. Ra6 {[%clk 0:01:44]} 27... Qb7 {[%clk 0:02:27.6]} 28.
Ra7 {[%clk 0:01:39.4]} 28... Qb1+ {[%clk 0:02:24.1]} 29. Kg2 {[%clk 0:01:38.6]}
29... Nb6 {[%clk 0:02:23.9]} 30. Nc3 {[%clk 0:01:29.8]} 30... Bxf3+ {[%clk
0:02:21.6]} 31. Kxf3 {[%clk 0:01:27.8]} 31... Qxd3+ {[%clk 0:02:22]} 32. Kg2
{[%clk 0:01:26.8]} 32... Nc4 {[%clk 0:02:21.7]} 33. Qa6 {[%clk 0:01:21.1]} 33...
Rd8 {[%clk 0:02:17]} 34. Qb7 {[%clk 0:01:12.3]} 34... Qxc3 {[%clk 0:02:10.7]}
35. Qxf7+ {[%clk 0:01:11.7]} 35... Kh8 {[%clk 0:02:11.2]} 36. Bxc5 {[%clk
0:00:54.3]} 36... Ne3+ {[%clk 0:01:59]} 37. Bxe3 {[%clk 0:00:52.3]} 37... Qxe3
{[%clk 0:01:59.5]} 38. Rd7 {[%clk 0:00:48]} 38... Ra8 {[%clk 0:01:57.3]} 39.
Qxe6 {[%clk 0:00:41.3]} 39... Qxf4 {[%clk 0:01:57.4]} 40. Rf7 {[%clk 0:00:38.2]}
40... Qe4+ {[%clk 0:01:56.6]} 41. Kh3 {[%clk 0:00:32.6]} 41... Ra3+ {[%clk
0:01:51.8]} 42. Kh4 {[%clk 0:00:32.8]} 42... Qe1+ {[%clk 0:01:49.9]} 43. Kh5
{[%clk 0:00:32.9]} 43... Rh3+ {[%clk 0:01:48.8]} 44. Kg6 {[%clk 0:00:32]} 44...
Qe4+ {[%clk 0:01:49.2]} 45. Rf5 {[%clk 0:00:30.2]} 45... Qxg4+ {[%clk
0:01:48.5]} 46. Kf7 {[%clk 0:00:30.4]} 46... Rf3 {[%clk 0:01:43.3]} 47. Rxf3
{[%clk 0:00:22.7]} 47... Qxf3+ {[%clk 0:01:43.4]} 48. Ke8 {[%clk 0:00:23]} 48...
Ba3 {[%clk 0:01:37.2]} 49. Qc4 {[%clk 0:00:20.5]} 49... Qf8+ {[%clk 0:01:35]}
50. Kd7 {[%clk 0:00:20.8]} 50... Qe7+ {[%clk 0:01:34.6]} 51. Kc8 {[%clk
0:00:19.6]} 51... Qxe5 {[%clk 0:01:32.8]} 0-1

[Event "*** Titled Tuesday Blitz"]
[Site "Chess.com"]
[Date "2020.04.21"]
[Round "8"]
[White "FROGGY64"]
[Black "MaxVavulin"]
[Result "0-1"]
[WhiteElo "2417"]
[BlackElo "2586"]
[TimeControl "180+1"]
[EndTime "11:38:01 PDT"]
[Termination "MaxVavulin won by resignation"]

1. d4 {[%clk 0:03:00.9]} 1... Nf6 {[%clk 0:02:58.5]} 2. Bg5 {[%clk 0:02:59.3]}
2... g6 {[%clk 0:02:51.6]} 3. Bxf6 {[%clk 0:02:58.4]} 3... exf6 {[%clk
0:02:51.8]} 4. c4 {[%clk 0:02:59]} 4... d5 {[%clk 0:02:51.9]} 5. Nc3 {[%clk
0:02:56.9]} 5... dxc4 {[%clk 0:02:50.4]} 6. e3 {[%clk 0:02:56.8]} 6... Bg7
{[%clk 0:02:50.2]} 7. Bxc4 {[%clk 0:02:57.3]} 7... f5 {[%clk 0:02:49.6]} 8. Nge2
{[%clk 0:02:57.6]} 8... O-O {[%clk 0:02:48.1]} 9. O-O {[%clk 0:02:58.2]} 9...
Nd7 {[%clk 0:02:47.3]} 10. Nf4 {[%clk 0:02:55.7]} 10... Nf6 {[%clk 0:02:44.2]}
11. Qb3 {[%clk 0:02:54.7]} 11... c6 {[%clk 0:02:43.4]} 12. h4 {[%clk 0:02:54.4]}
12... b5 {[%clk 0:02:18.9]} 13. Be2 {[%clk 0:02:53.3]} 13... a5 {[%clk
0:02:09.1]} 14. a3 {[%clk 0:02:50.1]} 14... a4 {[%clk 0:02:08.7]} 15. Qc2 {[%clk
0:02:44.3]} 15... Rb8 {[%clk 0:02:01.4]} 16. Bf3 {[%clk 0:02:36.8]} 16... Qd6
{[%clk 0:01:53.8]} 17. Na2 {[%clk 0:02:34.9]} 17... Bd7 {[%clk 0:01:50.1]} 18.
Nb4 {[%clk 0:02:34.6]} 18... Ne4 {[%clk 0:01:15.1]} 19. Bxe4 {[%clk 0:02:24.4]}
19... fxe4 {[%clk 0:01:15.1]} 20. Qxe4 {[%clk 0:02:18.2]} 20... Rfe8 {[%clk
0:01:11]} 21. Qf3 {[%clk 0:01:49.9]} 21... Rbc8 {[%clk 0:01:06.5]} 22. Rfd1
{[%clk 0:01:47.6]} 22... Bf5 {[%clk 0:01:05.1]} 23. Rac1 {[%clk 0:01:46]} 23...
Be4 {[%clk 0:01:04.6]} 24. Qg3 {[%clk 0:01:46]} 24... Red8 {[%clk 0:00:54]} 25.
Na6 {[%clk 0:01:33.9]} 25... Bf5 {[%clk 0:00:36.5]} 26. Nc5 {[%clk 0:01:32.7]}
26... Rb8 {[%clk 0:00:31.2]} 27. h5 {[%clk 0:01:30.2]} 27... b4 {[%clk
0:00:24.4]} 28. hxg6 {[%clk 0:01:29.4]} 28... hxg6 {[%clk 0:00:23.3]} 29. Na6
{[%clk 0:01:29.3]} 29... bxa3 {[%clk 0:00:22.5]} 30. bxa3 {[%clk 0:01:14.8]}
30... Rb3 {[%clk 0:00:21.6]} 31. e4 {[%clk 0:00:54.8]} 31... Rxg3 {[%clk
0:00:20.3]} 0-1

[Event "*** Titled Tuesday Blitz"]
[Site "Chess.com"]
[Date "2020.04.21"]
[Round "8"]
[White "Semen_Khanin"]
[Black "Batica1984"]
[Result "1-0"]
[WhiteElo "2654"]
[BlackElo "2760"]
[TimeControl "180+1"]
[EndTime "11:38:02 PDT"]
[Termination "Semen_Khanin won by resignation"]

1. e4 {[%clk 0:03:00.9]} 1... c5 {[%clk 0:02:57.9]} 2. Nf3 {[%clk 0:03:00.6]}
2... e6 {[%clk 0:02:55.9]} 3. d4 {[%clk 0:03:00.4]} 3... cxd4 {[%clk 0:02:53]}
4. Nxd4 {[%clk 0:03:01.3]} 4... Nc6 {[%clk 0:02:53.4]} 5. Nc3 {[%clk 0:03:01.8]}
5... Qc7 {[%clk 0:02:53.8]} 6. Be3 {[%clk 0:03:02.3]} 6... a6 {[%clk 0:02:53.6]}
7. Qf3 {[%clk 0:03:02.9]} 7... h5 {[%clk 0:02:53.2]} 8. Nxc6 {[%clk 0:02:50.7]}
8... bxc6 {[%clk 0:02:38.2]} 9. O-O-O {[%clk 0:02:48.4]} 9... Nf6 {[%clk
0:02:36.1]} 10. h3 {[%clk 0:02:33.1]} 10... Rb8 {[%clk 0:02:31.6]} 11. Bc4
{[%clk 0:02:30.6]} 11... d5 {[%clk 0:02:07.4]} 12. Bb3 {[%clk 0:02:30.2]} 12...
Bd6 {[%clk 0:01:56.3]} 13. Rhe1 {[%clk 0:02:28.2]} 13... O-O {[%clk 0:01:42.8]}
14. g4 {[%clk 0:02:27.6]} 14... Be5 {[%clk 0:01:28.6]} 15. g5 {[%clk 0:02:21.5]}
15... Bxc3 {[%clk 0:01:20.4]} 16. bxc3 {[%clk 0:02:10.3]} 16... Nxe4 {[%clk
0:01:20.1]} 17. Qxh5 {[%clk 0:02:10.4]} 17... Qa5 {[%clk 0:01:10.3]} 18. Bd4
{[%clk 0:02:10]} 18... Nxc3 {[%clk 0:00:55.8]} 19. Rd3 {[%clk 0:01:12.7]} 19...
Ne4 {[%clk 0:00:47.2]} 20. Rg1 {[%clk 0:01:08.8]} 20... e5 {[%clk 0:00:36.6]}
21. g6 {[%clk 0:01:07.3]} 21... fxg6 {[%clk 0:00:29.1]} 22. Qxe5 {[%clk
0:00:57.1]} 22... Rb7 {[%clk 0:00:28.7]} 23. Rxg6 {[%clk 0:00:36.2]} 23... Nf6
{[%clk 0:00:25.7]} 24. Rdg3 {[%clk 0:00:34.4]} 24... Rff7 {[%clk 0:00:18.9]} 25.
Rxf6 {[%clk 0:00:32.9]} 25... Rxf6 {[%clk 0:00:16.2]} 26. Qxf6 {[%clk
0:00:32.9]} 26... Qe1+ {[%clk 0:00:15.7]} 27. Kb2 {[%clk 0:00:32.7]} 1-0

[Event "*** Titled Tuesday Blitz"]
[Site "Chess.com"]
[Date "2020.04.21"]
[Round "8"]
[White "Playgood28"]
[Black "Morshynska"]
[Result "1-0"]
[WhiteElo "2176"]
[BlackElo "2082"]
[TimeControl "180+1"]
[EndTime "11:38:06 PDT"]
[Termination "Playgood28 won on time"]

1. d4 {[%clk 0:03:00.9]} 1... Nf6 {[%clk 0:02:58.6]} 2. c4 {[%clk 0:03:00.7]}
2... e6 {[%clk 0:02:58.6]} 3. Nc3 {[%clk 0:03:00.4]} 3... Bb4 {[%clk 0:02:57.8]}
4. Qc2 {[%clk 0:03:00.3]} 4... O-O {[%clk 0:02:56.3]} 5. a3 {[%clk 0:03:00.3]}
5... Bxc3+ {[%clk 0:02:56.2]} 6. Qxc3 {[%clk 0:03:00.4]} 6... b6 {[%clk
0:02:56.4]} 7. e3 {[%clk 0:03:00.1]} 7... Bb7 {[%clk 0:02:56.4]} 8. Nf3 {[%clk
0:02:59.7]} 8... d6 {[%clk 0:02:49]} 9. Be2 {[%clk 0:02:58.4]} 9... Ne4 {[%clk
0:02:47.6]} 10. Qc2 {[%clk 0:02:57.2]} 10... f5 {[%clk 0:02:47.4]} 11. b4 {[%clk
0:02:56.7]} 11... Nd7 {[%clk 0:02:33.5]} 12. O-O {[%clk 0:02:54.8]} 12... Rf6
{[%clk 0:02:18]} 13. d5 {[%clk 0:02:52.9]} 13... exd5 {[%clk 0:01:57.2]} 14. Bb2
{[%clk 0:02:51.5]} 14... Rg6 {[%clk 0:01:46.4]} 15. Rad1 {[%clk 0:02:44]} 15...
dxc4 {[%clk 0:01:34]} 16. Bxc4+ {[%clk 0:02:43.3]} 16... Kh8 {[%clk 0:01:33.6]}
17. Bd5 {[%clk 0:02:38.9]} 17... Qc8 {[%clk 0:00:29.2]} 18. Bc6 {[%clk 0:02:01]}
18... Ndf6 {[%clk 0:00:20.6]} 19. Nd4 {[%clk 0:01:55.4]} 19... Rg5 {[%clk
0:00:15.5]} 20. Bxb7 {[%clk 0:01:50.7]} 20... Qxb7 {[%clk 0:00:16.4]} 21. f3
{[%clk 0:01:40.4]} 21... Re8 {[%clk 0:00:10.8]} 22. fxe4 {[%clk 0:01:35.3]}
22... Nxe4 {[%clk 0:00:11.7]} 23. Qc6 {[%clk 0:01:31.5]} 23... Qc8 {[%clk
0:00:10.4]} 24. Nxf5 {[%clk 0:01:24.5]} 24... Nf6 {[%clk 0:00:07.5]} 25. Nxg7
{[%clk 0:01:12.4]} 25... Rxe3 {[%clk 0:00:03.2]} 26. Bxf6 {[%clk 0:01:09.3]}
26... Rg6 {[%clk 0:00:02.2]} 27. Nf5+ {[%clk 0:00:40.1]} 27... Rxf6 {[%clk
0:00:01.6]} 28. Nxe3 {[%clk 0:00:40.2]} 1-0

[Event "*** Titled Tuesday Blitz"]
[Site "Chess.com"]
[Date "2020.04.21"]
[Round "8"]
[White "1g41-0"]
[Black "woodhy"]
[Result "1-0"]
[WhiteElo "2438"]
[BlackElo "2289"]
[TimeControl "180+1"]
[EndTime "11:38:09 PDT"]
[Termination "1g41-0 won by checkmate"]

1. e4 {[%clk 0:03:00.9]} 1... e6 {[%clk 0:02:59.5]} 2. d4 {[%clk 0:03:00.4]}
2... d5 {[%clk 0:02:59.7]} 3. Nc3 {[%clk 0:03:00.8]} 3... Bb4 {[%clk 0:02:59.3]}
4. e5 {[%clk 0:03:00.1]} 4... c5 {[%clk 0:02:59.7]} 5. a3 {[%clk 0:02:59.6]}
5... Bxc3+ {[%clk 0:03:00]} 6. bxc3 {[%clk 0:03:00.5]} 6... Ne7 {[%clk
0:03:00.7]} 7. Qg4 {[%clk 0:03:00.2]} 7... Qc7 {[%clk 0:03:01.1]} 8. Qxg7 {[%clk
0:02:50.2]} 8... Rg8 {[%clk 0:03:01.1]} 9. Qxh7 {[%clk 0:02:50.8]} 9... cxd4
{[%clk 0:03:02]} 10. Ne2 {[%clk 0:02:50.4]} 10... Nbc6 {[%clk 0:03:02.2]} 11. f4
{[%clk 0:02:50.1]} 11... Bd7 {[%clk 0:02:58.7]} 12. Qd3 {[%clk 0:02:47.1]} 12...
dxc3 {[%clk 0:02:58.9]} 13. h4 {[%clk 0:02:40.7]} 13... O-O-O {[%clk 0:02:54.2]}
14. h5 {[%clk 0:02:41]} 14... a6 {[%clk 0:02:47.5]} 15. Qxc3 {[%clk 0:02:30.7]}
15... Nf5 {[%clk 0:02:42]} 16. h6 {[%clk 0:02:26.8]} 16... Rg6 {[%clk
0:02:41.2]} 17. h7 {[%clk 0:02:26.8]} 17... Rh8 {[%clk 0:02:41.1]} 18. Rb1
{[%clk 0:01:55.9]} 18... Rg7 {[%clk 0:02:11.4]} 19. Be3 {[%clk 0:01:14.8]} 19...
Nxe3 {[%clk 0:01:46.4]} 20. Qxe3 {[%clk 0:01:15.7]} 20... Rgxh7 {[%clk
0:01:46.3]} 21. Rxh7 {[%clk 0:01:16.6]} 21... Rxh7 {[%clk 0:01:47.2]} 22. Kf2
{[%clk 0:01:05.5]} 22... Qa5 {[%clk 0:01:41.3]} 23. Rb3 {[%clk 0:01:01.2]} 23...
Qa4 {[%clk 0:01:09.7]} 24. Qb6 {[%clk 0:00:52.1]} 24... Na5 {[%clk 0:00:58.5]}
25. Rb4 {[%clk 0:00:33.4]} 25... Qxa3 {[%clk 0:00:55.6]} 26. Qc5+ {[%clk
0:00:21.6]} 26... Nc6 {[%clk 0:00:48.1]} 27. Qf8+ {[%clk 0:00:20.6]} 27... Nd8
{[%clk 0:00:47.8]} 28. Rc4+ {[%clk 0:00:20.3]} 28... dxc4 {[%clk 0:00:47.2]} 29.
Qxa3 {[%clk 0:00:20.8]} 29... Nc6 {[%clk 0:00:32.4]} 30. Qc5 {[%clk 0:00:20.3]}
30... b5 {[%clk 0:00:31]} 31. Nd4 {[%clk 0:00:20]} 31... Kb7 {[%clk 0:00:31.3]}
32. Nxc6 {[%clk 0:00:19.8]} 32... Bxc6 {[%clk 0:00:32.2]} 33. Be2 {[%clk
0:00:19]} 33... Rh4 {[%clk 0:00:31.6]} 34. Bf3 {[%clk 0:00:18.6]} 34... Rxf4
{[%clk 0:00:31.5]} 35. Qxc6+ {[%clk 0:00:18.4]} 35... Kb8 {[%clk 0:00:31]} 36.
Qb7# {[%clk 0:00:19.1]} 1-0